bitfinex/quotes_ETHUSD_20251215
["timestamp","ask_amount","ask_price","bid_price","bid_amount"]
[1765841070764,0.537,2960.3,2959.5,0.489]
[1765841071665,3.37803826,2960.3,2959.5,3.86784421]
[1765841071865,3.37803826,2960.3,2959.5,0.489]
[1765841072092,3.37803826,2960.3,2959.6,0.4725]
[1765841073399,3.37803826,2960.3,2959.6,0.9296848]
[1765841073701,6.7558438,2960.4,2959.6,0.9296848]
[1765841073901,7.2418438,2960.4,2959.6,0.4725]
[1765841074601,3.91473585,2960.6,2959.6,7.23013297]
[1765841074981,3.91473585,2960.6,2959.7,0.4725]
[1765841075804,3.91473585,2960.6,2959.8,3.37860666]
[1765841076196,3.91473585,2960.6,2959.8,3.85110666]
[1765841076395,3.91473585,2960.6,2959.8,4.57409713]
[1765841076597,4.40073585,2960.6,2959.8,4.57409713]
[1765841076999,0.537,2960.6,2959.9,0.4725]
[1765841077194,3.9147225,2960.6,2959.9,0.4725]
[1765841077889,0.537,2960.6,2959.9,7.22940078]
[1765841078098,0.537,2960.6,2960.0,0.79523912]
[1765841078302,3.37759549,2960.7,2960.5,0.4884]
[1765841078793,3.95799206,2960.8,2960.5,0.4884]
[1765841079105,3.91438094,2960.9,2960.7,0.4884]
[1765841079498,0.537,2960.9,2960.7,0.4884]
[1765841079907,3.37712336,2961.1,2960.7,0.4884]
[1765841080071,3.37712336,2961.1,2960.8,0.4884]
[1765841080275,3.37712336,2961.1,2961.0,0.4884]
[1765841080684,3.37712336,2961.1,2961.0,0.9609]
[1765841080883,4.21012336,2961.1,2960.5,0.4725]
[1765841081084,7.58724672,2961.1,2960.5,1.0095]
[1765841081307,0.486,2962.7,2961.1,0.17643259]
[1765841081497,0.51989615,2962.6,2961.7,0.1222]
[1765841081699,0.486,2962.6,2961.7,0.1222]
[1765841081895,6.75105484,2962.5,2961.7,0.1222]
[1765841082205,3.37552742,2962.5,2961.8,0.4725]
[1765841082407,3.91334406,2962.7,2962.4,0.4884]
[1765841082819,7.28868812,2962.7,2962.1,0.4725]
[1765841083004,7.77468812,2962.7,2962.1,0.4725]
[1765841083310,7.77468812,2962.7,2961.9,0.4725]
[1765841083804,0.486,2962.6,2961.7,3.49863446]
[1765841084011,3.37552742,2962.5,2961.7,3.49863446]
[1765841084308,6.75105484,2962.5,2961.7,3.49863446]
[1765841084505,7.23705484,2962.5,2961.7,3.49863446]
[1765841085215,0.001,2964.1,2962.4,8.88445964]
[1765841085514,0.001,2964.1,2963.2,0.1827]
[1765841085677,0.001,2964.1,2963.2,0.7227]
[1765841085885,0.001,2964.1,2963.3,0.4725]
[1765841086106,0.001,2964.1,2963.4,6.74900452]
[1765841086301,0.001,2964.1,2963.4,7.22150452]
[1765841086501,0.001,2964.1,2963.4,7.71700932]
[1765841087311,0.487,2964.1,2963.2,4.09732058]
[1765841087515,0.487,2964.1,2963.3,3.37460311]
[1765841087516,0.1941,2963.9,2963.3,3.37460311]
[1765841087915,0.1941,2963.9,2963.2,3.55740906]
[1765841088111,0.6801,2963.9,2963.2,3.55740906]
[1765841088295,0.6801,2963.9,2963.2,3.37470906]
[1765841088503,0.486,2963.8,2963.2,3.37470906]
[1765841089007,0.3073,2963.3,2962.9,0.1827]
[1765841089202,0.3073,2963.3,2962.9,3.55772139]
[1765841089392,0.486,2963.8,2962.9,4.77077058]
[1765841089587,3.37416067,2963.7,2962.9,7.40529311]
[1765841091019,3.37416067,2963.7,2962.9,6.93279311]
[1765841091217,4.14956192,2963.9,2963.0,0.4725]
[1765841091398,0.486,2963.8,2963.1,3.37484391]
[1765841091585,0.486,2963.8,2963.0,1.01460524]
[1765841091788,0.80095486,2963.7,2963.0,1.01460524]
[1765841092004,0.57389615,2963.6,2963.0,1.01460524]
[1765841092211,1.026,2963.6,2962.7,4.03045654]
[1765841092399,0.3073,2963.1,2962.8,0.80095486]
[1765841093216,0.3073,2963.1,2962.8,4.17607478]
[1765841093416,3.85864041,2963.5,2962.8,4.17607478]
[1765841093722,0.43986404,2963.4,2962.8,4.64857478]
[1765841094719,0.43986404,2963.4,2962.8,0.80095486]
[1765841094720,0.486,2963.3,2962.8,0.80095486]
[1765841094920,0.5014,2962.9,2962.2,0.4725]
[1765841095106,0.5014,2962.9,2962.3,3.37569619]
[1765841096019,0.5014,2962.9,2962.3,4.39054512]
[1765841097019,3.87648332,2962.9,2962.3,4.39054512]
[1765841097326,3.87748332,2962.9,2962.3,4.39054512]
[1765841097724,0.5024,2962.9,2962.3,7.76630044]
[1765841098126,0.001,2962.9,2962.3,7.59360155]
[1765841098436,0.291,2963.2,2962.8,0.4884]
[1765841098809,3.6657396,2963.2,2962.8,0.4884]
[1765841099527,3.6657396,2963.2,2962.8,0.9609]
[1765841100925,0.80095486,2963.7,2963.1,0.4884]
[1765841101125,11.76915575,2964.7,2963.3,0.4884]
[1765841101126,3.56906358,2963.9,2963.3,0.4884]
[1765841101431,3.37496358,2963.9,2963.6,0.4884]
[1765841102130,0.001,2963.9,2963.6,0.4884]
[1765841102332,0.58147529,2963.9,2963.6,0.4884]
[1765841102706,0.77547529,2963.9,2963.2,3.37469215]
[1765841102924,0.4522,2963.7,2962.4,0.4601]
[1765841103120,0.4522,2963.7,2963.0,3.37485189]
[1765841103326,0.7931,2963.7,2963.1,3.37477336]
[1765841103816,0.4522,2963.7,2963.3,3.37455274]
[1765841104020,1.11637529,2963.9,2963.3,3.37455274]
[1765841104333,3.37404683,2963.8,2963.3,3.37455274]
[1765841104725,0.001,2963.7,2963.3,3.83465274]
[1765841105306,0.001,2963.7,2963.4,0.4601]
[1765841108443,0.001,2963.7,2963.6,0.4667]
[1765841108831,0.001,2963.7,2963.6,0.9268]
[1765841110837,0.001,2963.7,2963.6,0.4667]
[1765841112509,0.4532,2963.7,2963.3,0.4601]
[1765841112925,0.4532,2963.7,2963.3,7.20926695]
[1765841113434,0.001,2963.7,2963.6,0.4667]
[1765841115539,0.001,2963.7,2963.6,0.9268]
[1765841115928,0.001,2963.7,2963.6,4.30107453]
[1765841121243,0.001,2963.7,2963.6,5.60661986]
[1765841125344,0.001,2963.7,2963.6,4.60851986]
[1765841125523,0.001,2963.7,2963.1,0.58247529]
[1765841125524,0.3094,2963.7,2963.1,0.002]
[1765841125726,0.4522,2963.6,2963.3,3.37455954]
[1765841125938,0.001,2963.7,2963.4,3.37445525]
[1765841126231,0.001,2963.7,2963.5,3.84107464]
[1765841126639,0.001,2963.7,2963.6,0.4667]
[1765841127018,0.001,2963.7,2963.6,0.9268]
[1765841127625,0.001,2963.7,2963.6,0.96054274]
[1765841128126,0.001,2963.7,2963.6,0.9268]
[1765841128322,0.7941,2963.7,2963.1,3.37678856]
[1765841128522,0.0034,2963.5,2963.1,3.37678856]
[1765841128718,0.0034,2963.5,2963.1,0.002]
[1765841128935,0.305,2963.2,2963.1,0.002]
[1765841132633,3.37431466,2963.6,2963.1,0.4619]
[1765841132825,3.91319734,2963.7,2963.1,0.4619]
[1765841133220,3.91319734,2963.7,2963.1,0.9455]
[1765841133834,0.4718,2963.6,2963.1,0.4619]
[1765841134050,0.3216,2963.2,2963.1,0.002]
[1765841135459,3.84617219,2963.6,2963.1,0.4619]
[1765841136030,3.84617219,2963.6,2963.1,0.9455]
[1765841137558,3.84617219,2963.6,2963.1,4.32026327]
[1765841137762,4.72103643,2963.6,2963.1,4.32026327]
[1765841139939,0.539,2963.7,2963.5,0.4599]
[1765841140140,0.001,2963.7,2963.6,0.4599]
[1765841140649,0.001,2963.7,2963.6,0.9435]
[1765841153842,0.001,2963.7,2963.6,4.31777453]
[1765841158369,0.001,2963.7,2963.6,3.83417453]
[1765841158548,0.001,2963.7,2963.6,0.4599]
[1765841159460,0.001,2963.7,2963.6,3.83417453]
[1765841162191,0.001,2963.7,2963.6,0.4599]
[1765841162877,0.3071,2963.7,2963.1,0.002]
[1765841163081,0.3071,2963.7,2963.3,0.537]
[1765841163463,0.3071,2963.7,2963.4,3.37450226]
[1765841164785,0.3071,2963.7,2963.4,3.83130226]
[1765841165452,0.001,2963.7,2963.6,0.4678]
[1765841166356,0.001,2963.7,2963.6,0.9246]
[1765841167176,0.3039,2963.7,2963.4,3.37450226]
[1765841167371,0.3039,2963.7,2963.3,0.537]
[1765841167581,0.7977,2963.7,2963.3,3.91161127]
[1765841167955,0.4938,2963.6,2963.3,3.91161127]
[1765841168161,0.4938,2963.6,2963.1,4.37060266]
[1765841168378,0.4958,2963.5,2963.1,0.002]
[1765841168578,0.3029,2963.2,2963.1,0.002]
[1765841170296,3.91136906,2963.6,2963.1,0.002]
[1765841170297,0.537,2963.6,2963.1,0.9266]
[1765841170587,0.001,2963.7,2963.5,0.4678]
[1765841170884,0.001,2963.7,2963.6,0.4678]
[1765841171061,0.001,2963.7,2963.6,0.9246]
[1765841172366,0.001,2963.7,2963.6,0.4678]
[1765841174093,0.001,2963.7,2963.6,3.84207453]
[1765841174290,0.001,2963.7,2963.6,0.4678]
[1765841175262,0.001,2963.7,2963.4,0.4568]
[1765841175891,0.001,2963.7,2963.4,3.83123053]
[1765841176497,0.001,2963.7,2963.6,0.4678]
[1765841177289,0.3039,2963.7,2963.4,3.83123229]
[1765841177506,0.3039,2963.7,2963.4,0.4568]
[1765841178094,0.7977,2963.7,2963.4,3.37446136]
[1765841178302,0.0049,2963.5,2963.1,0.002]
[1765841178797,0.5007,2963.5,2963.1,3.37680212]
[1765841179700,0.5007,2963.5,2963.1,0.002]
[1765841179701,0.298,2963.2,2963.1,0.002]
[1765841179892,0.7938,2963.2,2963.1,0.002]
[1765841180479,4.16853002,2963.2,2963.1,0.002]
[1765841180680,5.01044182,2963.2,2963.1,0.002]
[1765841180884,4.97654567,2963.2,2963.1,0.002]
[1765841181705,5.01044182,2963.2,2963.1,0.002]
[1765841182030,4.97654567,2963.2,2963.1,0.002]
[1765841184802,4.97754567,2963.2,2963.1,0.002]
[1765841190730,5.01144182,2963.2,2963.1,0.002]
[1765841191022,4.97754567,2963.2,2963.1,0.002]
[1765841195324,5.55802096,2963.2,2963.1,0.002]
[1765841199031,0.58837529,2963.1,2962.0,0.002]
[1765841199227,0.0107,2962.1,2962.0,0.002]
[1765841199533,0.2071,2962.1,2962.0,0.002]
[1765841199729,0.7038,2962.1,2962.0,0.002]
[1765841201003,4.07978325,2962.1,2962.0,0.002]
[1765841201333,4.82534457,2962.1,2962.0,0.002]
[1765841202131,5.36234457,2962.1,2962.0,0.002]
[1765841203133,0.0107,2962.1,2962.0,0.002]
[1765841203441,0.05,2962.8,2962.0,0.9764]
[1765841203442,0.537,2962.5,2962.0,0.9764]
[1765841203648,0.537,2962.5,2962.0,0.4928]
[1765841203806,0.4967,2962.4,2962.0,0.4928]
[1765841204007,0.2997,2962.1,2962.0,0.002]
[1765841204444,0.7944,2962.1,2962.0,0.002]
[1765841205340,4.17038325,2962.1,2962.0,0.002]
[1765841206042,4.9250091,2962.1,2962.0,0.002]
[1765841206218,5.4620091,2962.1,2962.0,0.002]
[1765841211312,0.8367,2962.1,2962.0,0.002]
[1765841211547,3.37577152,2962.3,2962.0,0.4928]
[1765841213149,3.37577152,2962.3,2962.0,0.9764]
[1765841215349,3.37577152,2962.3,2962.2,0.4908]
[1765841215653,3.37577152,2962.3,2962.0,0.4856]
[1765841217464,3.37577152,2962.3,2962.0,0.002]
[1765841217634,7.24828739,2962.3,2962.0,0.002]
[1765841217839,0.2997,2962.1,2962.0,0.002]
[1765841219261,3.67568325,2962.1,2962.0,0.002]
[1765841219858,3.37591567,2962.2,2962.0,0.4928]
[1765841220070,3.37581098,2962.3,2962.1,0.4908]
[1765841221366,6.75128274,2962.4,2962.1,0.4908]
[1765841221665,0.4809,2962.2,2962.0,0.002]
[1765841222130,0.537,2962.5,2962.0,0.002]
[1765841222131,0.537,2962.5,2962.2,3.37586928]
[1765841222335,3.37484391,2963.1,2962.4,0.4867]
[1765841222566,3.37484391,2963.1,2962.5,0.9472]
[1765841222866,0.001,2963.0,2962.5,0.9472]
[1765841223066,0.001,2963.0,2962.9,0.4867]
[1765841223233,0.001,2963.0,2962.6,1.47535236]
[1765841223765,0.001,2963.0,2962.7,0.4605]
[1765841224340,0.001,2963.0,2962.9,0.4867]
[1765841225889,3.37595781,2963.0,2962.9,0.4867]
[1765841226187,0.001,2963.0,2962.9,0.4867]
[1765841226472,0.001,2963.0,2962.9,0.9472]
[1765841226645,0.001,2963.0,2962.9,1.96196997]
[1765841229892,0.001,2963.0,2962.9,5.8707678]
[1765841235575,0.001,2963.0,2962.9,9.7207678]
[1765841236503,0.001,2963.7,2963.1,0.4867]
[1765841236791,0.001,2963.7,2963.6,1.06717529]
[1765841236990,0.001,2963.7,2963.6,1.60417529]
[1765841237170,0.001,2963.7,2963.6,2.84151098]
[1765841237571,0.001,2963.7,2963.6,2.97674822]
[1765841238798,0.001,2963.7,2963.6,6.35102275]
[1765841239972,0.001,2965.0,2964.4,6.16418166]
[1765841240178,0.001,2965.0,2964.8,0.4867]
[1765841240483,0.001,2965.0,2964.8,0.9472]
[1765841240796,0.001,2965.0,2964.8,10.61947924]
[1765841240962,0.001,2965.0,2964.8,11.48325092]
[1765841242125,0.001,2965.0,2964.8,5.85606926]
[1765841242310,0.001,2965.0,2964.8,1.08238879]
[1765841242462,0.001,2965.0,2964.8,0.62188879]
[1765841243013,0.3189,2964.9,2964.8,0.13518879]
[1765841243300,0.7943,2964.9,2964.8,0.13518879]
[1765841243498,0.3189,2964.9,2964.8,0.13518879]
[1765841251887,0.3189,2964.9,2964.4,0.002]
[1765841251888,4.33429503,2964.9,2964.4,0.002]
[1765841252103,0.3151,2964.5,2964.4,0.002]
[1765841253391,0.788,2964.5,2964.4,0.002]
[1765841254714,4.16125012,2964.5,2964.4,0.002]
[1765841255014,4.69825012,2964.5,2964.4,0.002]
[1765841255218,5.84608546,2964.5,2964.4,0.002]
[1765841258591,13.20695714,2964.5,2963.6,1.01440968]
[1765841258797,0.0125,2963.7,2963.4,3.37446291]
[1765841258994,0.0125,2963.7,2963.5,1.01443713]
[1765841259407,0.0125,2963.7,2963.6,3.37427453]
[1765841259604,0.0125,2963.7,2963.5,1.01443713]
[1765841261435,0.0125,2963.7,2963.5,4.38881448]
[1765841262213,0.3131,2963.6,2963.5,4.38881448]
[1765841262722,0.786,2963.6,2963.2,0.002]
[1765841263048,0.0155,2963.4,2963.3,0.4729]
[1765841263200,0.0155,2963.4,2963.2,0.002]
[1765841263396,0.3102,2963.3,2963.2,0.002]
[1765841263623,0.7831,2963.3,2963.2,0.002]
[1765841264235,4.15771613,2963.3,2963.2,0.002]
[1765841265718,4.96463886,2963.3,2963.2,0.002]
[1765841266631,4.15771613,2963.3,2963.2,0.002]
[1765841267328,3.37452568,2963.4,2963.2,0.002]
[1765841267633,0.4954,2963.3,2963.2,0.002]
[1765841268031,0.7987,2963.3,2963.2,0.002]
[1765841270335,3.37452568,2963.4,2963.2,0.002]
[1765841270510,0.537,2963.5,2963.3,0.4969]
[1765841270715,3.37413779,2963.8,2963.4,0.4969]
[1765841271408,3.84715034,2963.7,2963.4,0.4969]
[1765841271815,7.22140068,2963.7,2963.4,0.4969]
[1765841272116,0.3255,2963.5,2963.2,0.4863]
[1765841272426,3.37404683,2963.8,2963.3,0.4843]
[1765841272618,7.22110123,2963.8,2963.2,0.002]
[1765841272805,0.4729,2963.7,2963.2,0.002]
[1765841274842,3.37427453,2963.6,2963.2,0.002]
[1765841275243,0.4729,2963.6,2963.2,0.002]
[1765841277540,3.84725329,2963.6,2963.2,0.002]
[1765841278352,0.3255,2963.3,2963.2,0.002]
[1765841278845,0.797,2963.3,2963.2,0.002]
[1765841279546,4.17161613,2963.3,2963.2,0.002]
[1765841283629,4.78598757,2963.3,2963.2,0.002]
[1765841284837,4.78598757,2963.3,2962.3,0.002]
[1765841284838,0.3196,2963.0,2962.3,0.002]
[1765841285045,0.1971,2962.4,2962.3,0.002]
[1765841285649,0.6713,2962.4,2962.3,0.002]
[1765841285850,4.08083752,2962.4,2962.3,0.002]
[1765841286056,4.88017478,2962.4,2962.3,0.002]
[1765841287271,4.84627863,2962.4,2962.3,0.002]
[1765841287972,4.88017478,2962.4,2962.3,0.002]
[1765841288329,4.84627863,2962.4,2962.3,0.002]
[1765841293529,3.3744507,2963.5,2962.3,0.002]
[1765841293530,0.1892,2964.1,2962.3,14.89103276]
[1765841293724,0.4742,2964.2,2963.1,0.1954]
[1765841293955,0.1892,2964.3,2963.6,6.16131638]
[1765841294170,0.1892,2964.3,2963.6,7.13826186]
[1765841294323,0.001,2964.4,2964.2,0.4549]
[1765841294690,0.001,2964.4,2964.3,0.4549]
[1765841295026,0.001,2964.4,2964.3,3.82837771]
[1765841298570,0.333,2964.4,2964.1,3.3736933]
[1765841298981,0.8058,2964.4,2964.1,3.3736933]
[1765841299143,0.8058,2964.4,2964.1,3.37370534]
[1765841300273,0.333,2964.4,2964.1,3.37370534]
[1765841300684,0.333,2964.4,2964.1,6.74741068]
[1765841303152,0.333,2964.4,2964.1,7.46943175]
[1765841303857,0.333,2964.4,2964.2,3.37359152]
[1765841304053,0.333,2964.4,2964.2,6.74718304]
[1765841305055,0.333,2964.4,2964.2,3.37359152]
[1765841306183,0.05,2964.1,2962.9,0.002]
[1765841306382,0.05,2964.1,2962.9,3.37705542]
[1765841306559,0.4742,2964.0,2962.9,3.37705542]
[1765841306759,0.536,2963.9,2962.9,3.37705542]
[1765841306966,0.536,2963.9,2962.9,7.4747974]
[1765841306967,0.7252,2963.9,2962.9,7.4747974]
[1765841307285,0.4742,2963.8,2962.9,7.4747974]
[1765841307966,0.58047529,2963.6,2962.9,7.4747974]
[1765841308480,1.05467529,2963.6,2962.9,7.4747974]
[1765841308986,1.05467529,2963.6,2962.9,4.09972568]
[1765841309180,0.58047529,2963.6,2962.9,4.09972568]
[1765841309388,0.4742,2963.5,2962.9,3.37705542]
[1765841310967,0.4742,2963.5,2962.9,0.002]
[1765841311286,0.4742,2963.5,2962.9,0.4885]
[1765841311986,3.37434884,2963.6,2962.9,0.4885]
[1765841312976,3.37434884,2963.6,2962.9,3.86347939]
[1765841312977,7.22598921,2963.6,2962.9,3.86347939]
[1765841313286,0.4773,2963.5,2962.9,0.4885]
[1765841313515,0.4773,2963.5,2962.9,0.002]
[1765841314174,0.4773,2963.5,2962.9,3.37699523]
[1765841315296,0.4773,2963.5,2962.9,0.002]
[1765841315297,3.37450226,2963.4,2962.9,0.002]
[1765841315995,0.4773,2963.3,2962.9,0.002]
[1765841316496,3.85194163,2963.3,2962.9,0.002]
[1765841316966,0.78064645,2963.6,2962.9,0.4697]
[1765841317168,3.85171143,2963.5,2962.9,0.4697]
[1765841317674,3.37441143,2963.5,2962.9,0.4697]
[1765841318062,0.4773,2963.4,2962.9,0.4697]
[1765841318466,3.85191162,2963.4,2962.9,0.4697]
[1765841318899,3.85191162,2963.4,2962.9,3.84474191]
[1765841320276,3.37461162,2963.4,2962.9,3.84474191]
[1765841320476,0.4773,2963.3,2962.9,3.84474191]
[1765841320692,0.4773,2963.3,2962.9,3.37704191]
[1765841320897,3.85191875,2963.3,2962.9,0.002]
[1765841321093,0.4773,2963.3,2962.9,3.37705897]
[1765841323687,0.4773,2963.3,2962.9,0.002]
[1765841324078,0.4773,2963.3,2962.9,0.4697]
[1765841326207,0.4773,2963.3,2963.0,3.37495781]
[1765841326410,0.4773,2963.3,2962.9,3.84471244]
[1765841328410,3.37452059,2963.4,2962.9,3.84471244]
[1765841328811,3.85182059,2963.4,2962.9,3.84471244]
[1765841329013,3.37452059,2963.4,2962.9,3.84471244]
[1765841329313,0.4773,2963.3,2962.9,3.84471244]
[1765841331597,0.001,2963.5,2962.9,7.21978416]
[1765841331797,0.4783,2963.5,2962.9,7.21978416]
[1765841331995,0.4783,2963.5,2962.9,3.84471244]
[1765841333834,3.8527262,2963.5,2963.0,3.85]
[1765841334286,0.4773,2963.4,2963.0,3.85]
[1765841335536,0.4773,2963.4,2963.0,4.3177]
[1765841335730,0.001,2963.5,2963.3,0.4878]
[1765841336024,0.001,2963.5,2963.4,0.4878]
[1765841336394,0.001,2963.5,2963.4,0.98924502]
[1765841336627,0.001,2963.5,2963.4,0.9555]
[1765841337597,0.001,2963.5,2963.4,4.33000226]
[1765841337794,0.001,2963.5,2963.4,11.05777275]
[1765841338015,0.001,2963.5,2963.4,5.4441065]
[1765841338328,0.001,2963.5,2963.4,6.45837214]
[1765841339032,0.001,2963.5,2963.4,13.15476866]
[1765841339443,0.001,2964.4,2964.3,12.32079304]
[1765841339765,0.001,2964.7,2964.6,10.11400815]
[1765841339891,0.001,2964.7,2964.6,10.60180815]
[1765841340095,0.001,2964.7,2964.6,11.60550815]
[1765841340315,0.001,2964.7,2964.6,0.4878]
[1765841340501,0.3139,2964.7,2964.3,0.80049336]
[1765841340809,0.3139,2964.7,2963.0,3.37491623]
[1765841340810,0.3146,2964.4,2963.9,3.37385004]
[1765841341129,0.4766,2964.7,2964.0,1.53209466]
[1765841341426,0.3146,2964.0,2963.4,0.4677]
[1765841341723,6.74650024,2964.5,2963.7,3.85073274]
[1765841341928,0.58047529,2964.4,2963.6,3.37426792]
[1765841342108,1.05737529,2964.4,2963.6,3.37426792]
[1765841342306,0.4769,2964.4,2963.5,1.01438567]
[1765841342627,0.4769,2964.4,2963.7,6.74832134]
[1765841342991,0.4769,2964.4,2963.7,7.24432134]
[1765841343191,0.4769,2964.4,2963.7,3.87016067]
[1765841343830,3.8503735,2964.4,2963.7,3.87016067]
[1765841344242,0.4769,2964.4,2963.7,7.24432134]
[1765841344445,3.85027899,2964.4,2963.7,3.87016067]
[1765841346535,0.4769,2964.4,2963.7,7.24432134]
[1765841347208,3.85027298,2964.4,2963.7,7.24432134]
[1765841347411,0.4769,2964.4,2963.7,7.24432134]
[1765841348331,0.4769,2964.4,2963.7,3.87016067]
[1765841348547,0.5083,2963.8,2963.0,0.496]
[1765841348726,0.5083,2963.8,2962.9,0.002]
[1765841348727,0.7309,2963.8,2962.9,0.002]
[1765841348901,0.3134,2963.0,2962.9,0.002]
[1765841349604,0.4752,2963.2,2962.9,0.002]
[1765841350008,0.315,2963.0,2962.9,0.002]
[1765841350404,0.7886,2963.0,2962.9,0.002]
[1765841351131,0.315,2963.0,2962.9,0.002]
[1765841351333,1.0096,2963.3,2962.9,0.002]
[1765841352034,4.04593848,2963.8,2963.2,0.4918]
[1765841352239,0.58047529,2963.7,2963.4,0.4918]
[1765841353035,3.3741947,2963.7,2963.4,0.4918]
[1765841353827,4.10496967,2963.8,2963.4,0.4918]
[1765841354019,1.2078,2963.8,2963.4,0.4918]
[1765841355338,4.58186246,2963.8,2963.4,0.4918]
[1765841355738,3.91006246,2963.8,2963.4,0.4918]
[1765841355939,3.91006246,2963.8,2963.4,0.9878]
[1765841357134,3.91006246,2963.8,2963.4,0.4918]
[1765841357444,4.38696246,2963.8,2963.4,0.4918]
[1765841357940,4.38696246,2963.8,2963.4,0.4938]
[1765841361346,1.0129,2963.8,2963.4,0.4938]
[1765841361646,4.38696248,2963.8,2963.4,0.4938]
[1765841367024,0.3134,2963.5,2963.4,0.002]
[1765841367745,0.7886,2963.5,2963.4,0.002]
[1765841370050,4.16298839,2963.5,2963.4,0.002]
[1765841372254,4.91671511,2963.5,2963.4,0.002]
[1765841372559,4.16298839,2963.5,2963.4,0.002]
[1765841377671,0.001,2964.5,2964.0,0.4809]
[1765841377842,0.001,2964.5,2964.4,6.83624242]
[1765841378039,0.001,2964.5,2964.4,1.93889953]
[1765841378254,0.001,2964.5,2964.4,2.41159953]
[1765841379944,0.001,2964.5,2964.4,5.78496344]
[1765841383469,0.001,2964.5,2964.4,11.93828819]
[1765841390789,0.001,2964.5,2964.4,11.3578129]
[1765841392988,0.001,2964.5,2964.4,15.2078129]
[1765841394585,0.001,2964.5,2964.4,11.3578129]
[1765841395474,0.001,2964.5,2964.4,11.35729841]
[1765841397671,0.001,2964.5,2964.4,11.9377737]
[1765841401777,0.001,2964.5,2964.4,11.35729841]
[1765841401965,0.001,2964.5,2964.4,3.85426391]
[1765841402171,0.001,2964.5,2964.4,3.82916391]
[1765841402480,0.001,2964.5,2964.4,4.32086391]
[1765841403995,0.001,2964.5,2964.4,3.37336391]
[1765841404202,0.3146,2964.5,2964.4,3.37336391]
[1765841405090,0.3146,2964.5,2964.1,0.6898]
[1765841405091,0.8103,2964.5,2964.0,0.002]
[1765841405271,0.3154,2964.1,2964.0,0.002]
[1765841405467,0.8093,2964.1,2964.0,0.002]
[1765841409208,4.93864986,2964.1,2964.0,0.002]
[1765841409377,4.21690149,2964.1,2964.0,0.002]
[1765841409577,4.18300534,2964.1,2964.0,0.002]
[1765841409805,0.8093,2964.1,2964.0,0.002]
[1765841410304,0.536,2964.4,2964.0,0.4578]
[1765841410603,1.0336,2964.4,2964.0,0.4578]
[1765841410906,4.40698418,2964.4,2964.0,0.4578]
[1765841411122,0.3136,2964.1,2964.0,0.002]
[1765841413715,0.8093,2964.1,2964.0,0.002]
[1765841415813,4.18300534,2964.1,2964.0,0.002]
[1765841417120,0.8093,2964.1,2964.0,0.002]
[1765841417305,1.37216186,2964.4,2964.0,0.002]
[1765841417306,3.37342057,2964.4,2964.0,0.4578]
[1765841417511,0.536,2964.3,2964.0,0.4578]
[1765841417805,0.536,2964.3,2964.1,0.4917]
[1765841417999,0.536,2964.3,2964.2,0.4558]
[1765841418388,0.001,2964.5,2964.2,0.9475]
[1765841418588,0.001,2964.5,2964.4,0.4558]
[1765841418990,0.001,2964.5,2964.4,0.9475]
[1765841419917,0.001,2964.5,2964.4,4.32086391]
[1765841422424,0.001,2964.5,2964.4,0.9475]
[1765841422723,0.001,2964.5,2964.4,0.4558]
[1765841423589,0.001,2964.5,2964.4,3.82916391]
[1765841423795,0.001,2964.5,2964.4,1.17607525]
[1765841424804,0.001,2964.5,2964.4,4.54943916]
[1765841425818,0.001,2964.5,2964.4,1.17607525]
[1765841426825,0.001,2964.5,2964.4,4.54943916]
[1765841427029,0.001,2964.5,2964.4,5.04113916]
[1765841429629,0.001,2964.5,2964.4,1.17607525]
[1765841429861,0.4984,2964.5,2964.4,0.4558]
[1765841430127,0.4984,2964.5,2964.2,3.86522955]
[1765841431227,0.4984,2964.5,2964.3,3.37346174]
[1765841431520,0.3138,2964.3,2964.0,0.002]
[1765841431723,0.3138,2964.3,2964.1,3.37359981]
[1765841431891,0.7848,2964.3,2964.1,4.04854083]
[1765841432094,0.5037,2964.2,2964.0,0.002]
[1765841432299,0.3076,2964.1,2964.0,0.002]
[1765841438005,0.782,2964.1,2964.0,0.002]
[1765841438927,4.69170534,2964.1,2964.0,0.002]
[1765841439332,1.318,2964.1,2964.0,0.002]
[1765841439626,1.66541659,2964.1,2964.0,0.002]
[1765841440323,1.318,2964.1,2964.0,0.002]
[1765841442103,5.27218063,2964.1,2964.0,0.002]
[1765841443905,0.58047529,2964.0,2963.4,0.002]
[1765841444105,0.2271,2963.5,2963.4,0.002]
[1765841444434,0.7631,2963.5,2963.4,0.002]
[1765841444642,1.2375,2963.5,2963.4,0.002]
[1765841447040,1.6986676,2963.5,2963.4,0.002]
[1765841447239,5.65353128,2963.5,2963.4,0.002]
[1765841447415,2.27914289,2963.5,2963.4,0.002]
[1765841447828,5.65353128,2963.5,2963.4,0.002]
[1765841448842,2.27914289,2963.5,2963.4,0.002]
[1765841450352,5.65353128,2963.5,2963.4,0.002]
[1765841453443,0.2972,2963.0,2962.8,0.002]
[1765841453746,0.5707,2962.9,2962.8,0.002]
[1765841454126,1.0451,2962.9,2962.8,0.002]
[1765841456351,4.42017172,2962.9,2962.8,0.002]
[1765841456530,5.19967389,2962.9,2962.8,0.002]
[1765841457453,5.23357004,2962.9,2962.8,0.002]
[1765841458850,5.19967389,2962.9,2962.8,0.002]
[1765841460333,1.82460217,2962.9,2962.8,0.002]
[1765841460656,1.03975313,2963.4,2962.8,0.9223]
[1765841460855,0.536,2963.3,2962.9,0.453]
[1765841461154,0.536,2963.3,2962.9,0.9203]